bitfinex-derivatives/quotes_SOLF0:USTF0_20260121
["timestamp","ask_amount","ask_price","bid_price","bid_amount"]
[1769020149995,6.28121473,126.94,126.82,5.30797893]
[1769020150196,110.3804,126.95,126.82,5.30797893]
[1769020150497,7.0964,126.94,126.85,5.30797893]
[1769020150701,110.3501,126.98,126.85,5.30797893]
[1769020150899,110.3277,127.01,126.85,11.82694398]
[1769020151108,7.0935,126.99,126.9,5.30797893]
[1769020152996,7.0939,126.98,126.9,5.30797893]
[1769020153797,7.093,127.0,126.9,5.30797893]
[1769020153997,7.093,127.0,126.91,5.30797893]
[1769020154507,7.0919,127.02,126.92,5.30797893]
[1769020156002,7.0919,127.02,126.92,12.40477893]
[1769020156212,7.0919,127.02,126.93,5.69060629]
[1769020157915,7.0919,127.02,126.92,7.0968]
[1769020157916,116.83306505,127.02,126.9,310.90840629]
[1769020158212,116.83306505,127.02,126.91,5.69060629]
[1769020158916,7.0928,127.0,126.91,5.69060629]
[1769020159118,7.0928,127.0,126.91,12.78800629]
[1769020160799,7.0928,127.0,126.91,5.69060629]
[1769020161208,7.0934,126.99,126.91,5.69060629]
[1769020161515,110.3217,127.01,126.9,298.12]
[1769020161716,7.0939,126.98,126.9,298.12]
[1769020162107,116.83506505,127.02,126.91,5.69060629]
[1769020162719,7.093,127.0,126.92,5.69060629]
[1769020165824,13.61086505,127.02,126.92,5.69060629]
[1769020166122,6.51896505,127.05,126.93,5.69060629]
[1769020166421,110.2731,127.07,126.94,5.69060629]
[1769020168024,7.0904,127.04,126.96,7.0944]
[1769020168415,110.282,127.06,126.94,5.69060629]
[1769020169118,116.80596505,127.05,126.94,5.69060629]
[1769020170517,110.2731,127.07,126.95,5.69060629]
[1769020171417,110.2788,127.06,126.95,5.69060629]
[1769020172221,7.0918,127.02,126.95,5.69060629]
[1769020175526,7.0918,127.02,126.92,303.61060629]
[1769020175717,7.0921,127.01,126.92,303.61060629]
[1769020176229,7.0921,127.01,126.93,5.69060629]
[1769020177031,7.0921,127.01,126.93,12.78700629]
[1769020178329,7.0921,127.01,126.94,7.0959]
[1769020179032,116.80556505,127.05,126.92,297.92]
[1769020179033,6.51896505,127.05,126.96,5.69060629]
[1769020180029,7.091,127.03,126.96,5.69060629]
[1769020183735,6.51896505,127.05,126.96,12.78530629]
[1769020184237,110.2731,127.07,126.97,7.0941]
[1769020184433,6.51896505,127.08,126.97,5.69060629]
[1769020184630,116.78216505,127.08,126.97,5.69060629]
[1769020184832,110.2693,127.07,126.98,7.0937]
[1769020185043,110.2693,127.07,126.97,5.69060629]
[1769020185536,7.0909,127.04,126.97,12.78480629]
[1769020186137,110.2693,127.07,126.97,5.69060629]
[1769020186443,110.2693,127.07,126.93,110.388]
[1769020186444,110.2797,127.06,126.95,13.53640382]
[1769020186631,110.2872,127.05,126.95,13.53640382]
[1769020187435,110.2872,127.05,126.95,6.44160382]
[1769020188039,7.0915,127.02,126.96,6.44160382]
[1769020190439,7.0909,127.03,126.96,6.44160382]
[1769020191642,7.0915,127.02,126.96,6.44160382]
[1769020193240,7.091,127.03,126.96,6.44160382]
[1769020194150,7.0916,127.02,126.96,6.44160382]
[1769020194340,110.2797,127.06,126.96,6.44160382]
[1769020194544,6.27851216,127.05,126.96,6.44160382]
[1769020194741,7.091,127.03,126.96,6.44160382]
[1769020196144,110.2797,127.06,126.96,6.44160382]
[1769020196349,6.28745788,127.05,126.96,6.44160382]
[1769020196650,7.0914,127.03,126.96,6.44160382]
[1769020198745,7.0914,127.03,126.96,13.53620382]
[1769020199146,110.2693,127.07,126.96,6.44160382]
[1769020199346,6.28966317,127.06,127.0,6.72433131]
[1769020199545,110.2419,127.11,127.0,6.72433131]
[1769020199748,13.37566902,127.1,127.03,6.72433131]
[1769020199969,7.0873,127.1,127.03,6.72433131]
[1769020200548,110.2275,127.12,127.01,13.81613131]
[1769020200747,6.28721177,127.11,127.01,6.72433131]
[1769020200943,133.8644,127.13,127.01,6.72433131]
[1769020200944,13.37441177,127.1,127.01,6.72433131]
[1769020201259,6.51896505,127.14,127.01,6.72433131]
[1769020201554,6.28319072,127.13,127.01,6.72433131]
[1769020201848,110.2072,127.15,127.03,6.72433131]
[1769020202148,440.633,127.2,127.06,6.72433131]
[1769020202149,116.67916505,127.2,127.06,6.72433131]
[1769020202354,6.27184946,127.19,127.07,6.72433131]
[1769020202653,116.67916505,127.2,127.07,6.72433131]
[1769020202654,6.27184946,127.18,127.1,6.72433131]
[1769020202951,6.51896505,127.2,127.1,6.72433131]
[1769020203150,116.43913037,127.19,127.08,6.72433131]
[1769020203350,116.44573037,127.18,127.08,6.72433131]
[1769020203552,110.1749,127.18,127.08,6.72433131]
[1769020203745,122.96286043,127.17,127.05,6.72433131]
[1769020204054,6.26149538,127.16,127.05,6.72433131]
[1769020204251,7.0839,127.16,127.07,6.72433131]
[1769020204444,116.67876505,127.2,127.07,6.72433131]
[1769020204639,116.42433459,127.19,127.07,6.72433131]
[1769020204943,116.70376505,127.17,127.07,6.72433131]
[1769020205250,110.2001,127.15,127.04,6.72433131]
[1769020205958,110.2172,127.13,127.02,297.72]
[1769020206258,110.2172,127.13,127.02,304.44433131]
[1769020206444,133.8662,127.12,127.02,6.72433131]
[1769020206645,116.75376505,127.11,127.02,6.72433131]
[1769020206845,116.75376505,127.11,126.98,6.72433131]
[1769020206846,110.2524,127.09,126.98,6.72433131]
[1769020207245,110.2524,127.09,126.95,408.0675]
[1769020207246,6.49855186,127.1,126.99,6.72433131]
[1769020207452,6.49855186,127.13,126.99,6.72433131]
[1769020207642,6.49855186,127.13,127.0,6.72433131]
[1769020207847,6.49855186,127.13,127.01,6.72433131]
[1769020208054,7.086,127.12,127.04,6.72433131]
[1769020208249,116.72035186,127.13,127.01,6.72433131]
[1769020208656,116.72035186,127.13,126.99,116.83235186]
[1769020208657,7.0866,127.11,127.02,13.81573131]
[1769020208851,6.49855186,127.13,127.03,6.72433131]
[1769020209259,110.2058,127.15,127.03,6.72433131]
[1769020209560,133.8458,127.15,127.03,6.72433131]
[1769020210054,6.49855186,127.17,127.06,6.72433131]
[1769020210359,7.0844,127.15,127.06,6.72433131]
[1769020211058,110.2023,127.15,127.06,6.72433131]
[1769020212059,7.0857,127.13,127.06,6.72433131]
[1769020212657,7.0857,127.13,127.04,7.0903]
[1769020212658,7.0862,127.12,127.03,6.72433131]
[1769020213059,116.70785186,127.14,127.03,6.72433131]
[1769020213060,110.2175,127.13,127.03,6.72433131]
[1769020213353,116.70785186,127.14,127.04,6.72433131]
[1769020213559,110.2031,127.15,127.04,6.72433131]
[1769020213962,7.086,127.12,127.04,6.72433131]
[1769020214658,110.227,127.12,127.01,6.72433131]
[1769020214957,6.49855186,127.14,127.02,6.72433131]
[1769020215160,110.1945,127.16,127.02,6.72433131]
[1769020215664,7.0854,127.13,127.04,13.95311748]
[1769020215859,7.0854,127.13,127.04,6.86291748]
[1769020216162,7.0846,127.15,127.06,6.86291748]
[1769020216358,110.2051,127.15,127.03,6.86291748]
[1769020217367,7.085,127.14,127.05,13.95261748]
[1769020217567,110.1919,127.16,127.05,6.86291748]
[1769020217755,7.0855,127.13,127.05,6.86291748]
[1769020217956,220.4099,127.15,127.05,6.86291748]
[1769020218664,7.0859,127.12,127.05,6.86291748]
[1769020218866,110.2172,127.13,127.01,6.86291748]
[1769020220163,110.2344,127.11,127.01,6.86291748]
[1769020220354,110.2432,127.1,126.98,6.86291748]
[1769020220554,116.73295186,127.11,126.98,6.86291748]
[1769020221377,7.0878,127.09,126.99,13.95571748]
[1769020221561,7.0878,127.09,126.99,6.86291748]
[1769020222967,7.0878,127.09,127.0,7.0925]
[1769020223868,7.0884,127.08,127.0,7.0925]
[1769020224169,116.73295186,127.11,127.0,7.0925]
[1769020224578,6.49855186,127.11,127.01,7.092]
[1769020224778,6.49855186,127.11,127.01,6.86291748]
[1769020225176,6.49855186,127.11,127.0,6.86291748]
[1769020225379,6.49855186,127.11,127.01,6.86291748]
[1769020225684,7.0853,127.13,127.05,6.86291748]
[1769020226269,6.49855186,127.14,127.06,7.0889]
[1769020226574,7.0847,127.15,127.05,6.86291748]
[1769020227175,7.0847,127.15,127.07,7.0887]
[1769020227375,7.0847,127.15,127.05,6.86291748]
[1769020227884,7.085,127.14,127.06,7.0887]
[1769020228088,110.1925,127.16,127.06,7.0887]
[1769020228392,116.68455186,127.17,127.06,13.95161748]
[1769020228978,110.1923,127.16,127.06,7.0887]
[1769020229184,110.2007,127.15,127.04,6.86291748]
[1769020229585,110.1923,127.16,127.05,6.86291748]
[1769020230190,7.0856,127.13,127.05,6.86291748]
[1769020230384,6.49855186,127.14,127.05,6.86291748]
[1769020231687,6.49855186,127.14,127.07,7.0886]
[1769020231688,7.0852,127.14,127.07,7.0886]
[1769020232892,7.0842,127.16,127.07,13.95151748]
[1769020233184,116.68455186,127.17,127.07,13.95151748]
[1769020233389,116.68455186,127.17,127.07,7.0886]
[1769020233893,110.1933,127.16,127.04,6.86291748]
[1769020234284,7.0855,127.13,127.05,6.86291748]
[1769020235995,7.0855,127.13,127.05,13.95261748]
[1769020236292,7.0855,127.13,127.05,6.86291748]
[1769020236793,7.0861,127.12,127.05,6.86291748]
[1769020237089,110.219,127.13,127.01,6.86291748]
[1769020237589,7.0878,127.09,127.01,6.86291748]
[1769020237781,110.2295,127.12,127.01,6.86291748]
[1769020237782,110.2393,127.11,127.01,6.86291748]
[1769020238482,110.2449,127.1,126.97,6.86291748]
[1769020238682,140.37785186,127.11,126.97,6.86291748]
[1769020239296,7.0881,127.09,127.0,6.86291748]
[1769020239485,6.49855186,127.11,127.0,6.86291748]
[1769020240500,7.087,127.1,127.01,7.092]
[1769020240785,140.37575186,127.11,127.0,6.86291748]
[1769020240987,7.0888,127.07,126.98,7.0934]
[1769020241178,7.0888,127.07,126.97,6.86291748]
[1769020241686,7.0897,127.06,126.97,6.86291748]
[1769020242082,7.0897,127.06,126.97,13.95701748]
[1769020242287,13.58715186,127.08,126.98,6.86291748]
[1769020242684,13.58715186,127.08,126.99,7.0928]
[1769020243283,13.58715186,127.08,126.99,13.95571748]
[1769020243485,7.0886,127.08,127.0,13.95531748]
[1769020244279,7.0875,127.1,127.01,6.86291748]
[1769020244683,6.49855186,127.11,127.01,6.86291748]
[1769020244886,13.58545186,127.11,127.01,6.86291748]
[1769020245293,7.0869,127.11,127.01,6.86291748]
[1769020245692,7.0871,127.1,127.03,7.0906]
[1769020245896,7.0871,127.1,127.01,6.86291748]
[1769020247495,7.0863,127.12,127.03,13.81179257]
[1769020247992,7.0863,127.12,127.04,6.72109257]
[1769020248291,6.49855186,127.14,127.05,6.72109257]
[1769020248292,110.2095,127.14,127.05,6.72109257]
[1769020248887,7.0867,127.11,127.03,6.72109257]
[1769020249297,7.0871,127.1,127.03,6.72109257]
[1769020251190,7.0877,127.09,127.03,6.72109257]
[1769020251895,7.0866,127.11,127.03,6.72109257]
[1769020252397,7.0856,127.13,127.04,6.72109257]
[1769020252793,116.68515186,127.17,127.05,6.72109257]
[1769020253103,110.2007,127.15,127.05,6.72109257]
[1769020253392,116.68515186,127.17,127.06,6.72109257]
[1769020253701,110.1724,127.19,127.06,6.72109257]
[1769020253896,6.25413353,127.18,127.06,6.72109257]
[1769020254199,6.49855186,127.2,127.09,6.72109257]
[1769020254399,6.2520538,127.19,127.09,6.72109257]
[1769020254591,7.0832,127.17,127.09,6.72109257]
[1769020258901,7.0839,127.16,127.09,6.72109257]
[1769020259105,110.1826,127.17,127.09,6.72109257]
[1769020259398,110.1826,127.17,127.07,6.90950112]
[1769020260101,7.085,127.14,127.07,6.90950112]
[1769020260303,110.1998,127.15,127.05,7.0895]
[1769020260503,110.1998,127.15,127.04,6.90950112]
[1769020260900,110.1998,127.15,127.01,110.3188]
[1769020260901,110.1942,127.16,127.06,6.90950112]
[1769020261805,110.1942,127.16,127.05,7.0895]
[1769020262007,7.0854,127.13,127.05,13.99900112]
[1769020262307,110.2051,127.15,127.05,6.90950112]
[1769020262904,110.2051,127.15,127.03,6.90950112]
[1769020262905,7.0866,127.11,127.03,6.90950112]
[1769020263313,116.70895186,127.14,127.03,6.90950112]
[1769020263314,7.0871,127.1,127.03,6.90950112]
[1769020263518,110.2282,127.12,127.03,6.90950112]
[1769020263707,110.2282,127.12,126.98,6.90950112]
[1769020264009,110.2183,127.13,127.03,6.90950112]
[1769020264311,116.70895186,127.14,126.99,110.336]
[1769020264312,110.2345,127.11,126.99,6.90950112]
[1769020264511,110.2345,127.11,127.02,6.90950112]
[1769020264804,110.2445,127.1,127.02,6.90950112]
[1769020265009,110.2445,127.1,126.99,6.90950112]
[1769020265211,7.0888,127.07,126.99,6.90950112]
[1769020265802,7.0894,127.06,126.99,6.90950112]
[1769020266202,110.2445,127.1,126.99,6.90950112]
[1769020266397,7.0889,127.07,126.99,6.90950112]
[1769020266806,110.2521,127.09,126.99,6.90950112]
[1769020266807,7.0894,127.06,126.99,6.90950112]
[1769020267200,116.76595186,127.08,126.96,6.90950112]
[1769020267510,7.0901,127.05,126.97,6.90950112]
[1769020268311,6.49855186,127.05,126.95,6.90950112]
[1769020268913,6.50120025,127.07,126.96,6.90950112]
[1769020269714,7.0896,127.06,126.98,6.90950112]
[1769020269905,6.50120025,127.07,126.98,6.90950112]
[1769020270712,7.0889,127.07,126.98,14.00290112]
[1769020271214,7.0889,127.07,126.99,6.90950112]
[1769020272919,7.0879,127.09,126.99,14.00250112]
[1769020273222,7.0879,127.09,127.0,6.90950112]
[1769020273813,110.2533,127.09,127.0,6.90950112]
[1769020274213,110.2533,127.09,126.98,14.00290112]
[1769020274413,110.2622,127.08,126.98,14.00290112]
[1769020275114,7.0905,127.04,126.98,6.90950112]
[1769020275314,110.2869,127.05,126.94,6.90950112]
[1769020275620,110.2805,127.06,126.94,6.90950112]
[1769020276017,7.0901,127.05,126.94,6.90950112]
[1769020276421,7.0901,127.05,126.95,7.09808191]
[1769020276621,6.50120025,127.07,126.95,7.09808191]
[1769020277719,7.0899,127.05,126.97,14.19228191]
[1769020278021,110.2523,127.09,126.98,7.09808191]
[1769020278518,110.2523,127.09,126.99,7.09808191]
[1769020278720,116.74890025,127.1,126.99,7.09808191]
[1769020279025,110.2417,127.11,127.01,7.09808191]
[1769020279523,7.0876,127.09,127.01,7.09808191]
[1769020279823,116.72590025,127.13,127.01,7.09808191]
[1769020280218,110.228,127.12,127.01,7.09808191]
[1769020280415,116.72590025,127.13,127.01,7.09808191]
[1769020280620,6.50120025,127.13,127.01,7.09808191]
[1769020280826,116.69740025,127.16,127.05,7.09808191]
[1769020281019,140.33740025,127.16,127.05,7.09808191]
[1769020281420,7.0856,127.13,127.05,14.18778191]
[1769020281824,110.1812,127.18,127.06,7.09808191]
[1769020282022,7.0828,127.18,127.1,7.09808191]
[1769020282326,110.1549,127.21,127.1,7.09808191]
[1769020282626,6.23360991,127.2,127.1,7.09808191]
[1769020282823,110.1549,127.21,127.1,7.09808191]
[1769020283031,140.46153593,127.22,127.11,7.09808191]
[1769020283032,116.64250025,127.22,127.11,7.09808191]
[1769020283322,6.50120025,127.22,127.11,7.09808191]
[1769020283724,7.081,127.21,127.13,7.0852]
[1769020284526,7.0815,127.2,127.13,7.0852]
[1769020284727,7.0815,127.2,127.11,14.18418191]
[1769020285824,7.0815,127.2,127.12,14.18378191]
[1769020286023,7.0815,127.2,127.12,7.09808191]
[1769020288131,7.0811,127.21,127.12,7.09808191]
[1769020289330,110.1481,127.21,127.12,7.09808191]
[1769020290028,110.1659,127.19,127.09,7.09808191]
[1769020290231,110.1845,127.17,127.06,7.09808191]
[1769020291325,110.1786,127.18,127.07,7.09808191]
[1769020291526,110.1829,127.17,127.07,7.09808191]
[1769020291937,7.0849,127.14,127.07,7.09808191]
[1769020292932,7.0838,127.16,127.07,7.09808191]
[1769020293232,110.1786,127.18,127.07,7.09808191]
[1769020293835,7.0833,127.17,127.08,7.09808191]
[1769020294434,7.0825,127.19,127.09,7.09808191]
[1769020294739,110.1379,127.23,127.09,7.09808191]
[1769020296039,7.0817,127.2,127.12,7.09808191]
[1769020296338,116.62130025,127.25,127.12,7.09808191]
[1769020296543,7.0808,127.22,127.13,14.18328191]
[1769020296729,124.2379,127.29,127.09,116.75030025]
[1769020296730,336.52800025,127.38,127.14,7.09808191]
[1769020296929,6.21160609,127.31,127.2,7.09808191]
[1769020297135,1.36789764,127.33,127.21,7.09808191]
[1769020297338,6.50120025,127.34,127.22,7.09808191]
[1769020297538,116.24867456,127.33,127.22,7.09808191]
[1769020297745,116.56350025,127.31,127.19,7.09808191]
[1769020298133,6.50120025,127.31,127.19,7.09808191]
[1769020298331,7.0762,127.3,127.2,7.09808191]
[1769020299045,7.0767,127.29,127.2,7.09808191]
[1769020299244,110.0794,127.29,127.2,7.09808191]
[1769020299440,110.0794,127.29,127.18,7.09808191]
[1769020299641,7.0778,127.27,127.18,7.09808191]
[1769020300247,7.0784,127.26,127.17,297.52]
[1769020301150,7.0784,127.26,127.17,304.61808191]
[1769020301740,7.0789,127.25,127.17,304.61808191]
[1769020302036,13.58010025,127.25,127.17,304.61808191]
[1769020302239,13.58010025,127.25,127.13,7.09808191]
[1769020302240,116.61790025,127.25,127.13,7.09808191]
[1769020302438,116.61790025,127.25,127.11,7.09808191]
[1769020302439,6.50120025,127.22,127.11,7.09808191]
[1769020303944,110.1511,127.21,127.11,7.09808191]
[1769020304451,116.64290025,127.22,127.11,7.09808191]
[1769020304452,6.50120025,127.22,127.11,7.09808191]
[1769020305250,110.1483,127.21,127.11,7.09808191]
[1769020305548,116.66760025,127.19,127.08,6.78214791]
[1769020305854,6.50120025,127.19,127.08,6.78214791]
[1769020306352,7.0827,127.18,127.08,6.78214791]
[1769020307746,7.0827,127.18,127.09,6.78214791]
[1769020310660,7.0832,127.17,127.09,6.78214791]
[1769020311349,7.0822,127.19,127.09,6.78214791]
[1769020312150,7.0822,127.19,127.08,7.0879]
[1769020312151,7.0837,127.16,127.07,6.78214791]
[1769020312856,7.0829,127.18,127.08,6.78214791]
[1769020313055,6.50120025,127.21,127.08,6.78214791]
[1769020313254,110.1361,127.23,127.08,6.78214791]
[1769020313659,7.0818,127.2,127.1,7.0869]
[1769020313860,7.0818,127.2,127.11,6.78214791]
[1769020314854,7.0809,127.21,127.12,6.78214791]
[1769020315056,110.1361,127.23,127.12,6.78214791]
[1769020315254,110.1408,127.22,127.12,6.78214791]
[1769020315656,7.0822,127.19,127.12,6.78214791]
[1769020315856,110.1408,127.22,127.12,6.78214791]
[1769020316957,7.082,127.19,127.12,6.78214791]
[1769020317159,133.7761,127.23,127.12,6.78214791]
[1769020317362,6.50120025,127.24,127.12,6.78214791]
[1769020317662,110.1346,127.23,127.12,6.78214791]
[1769020317865,110.1411,127.22,127.12,6.78214791]
[1769020318160,7.0821,127.19,127.12,6.78214791]
[1769020318351,140.29210025,127.21,127.1,7.0865]
[1769020318552,7.0831,127.17,127.09,6.78214791]
[1769020319352,140.29210025,127.21,127.1,7.087]
[1769020319562,140.29210025,127.21,127.1,14.00286815]
[1769020319763,140.29210025,127.21,127.1,6.91586815]
[1769020320366,110.1596,127.2,127.1,6.91586815]
[1769020321058,7.0834,127.17,127.1,14.00286815]
[1769020321861,7.0838,127.16,127.08,6.91586815]
[1769020322469,7.0838,127.16,127.09,14.00326815]
[1769020322856,7.0842,127.15,127.07,7.0882]
[1769020323261,110.1684,127.19,127.07,6.91586815]
[1769020323560,7.0831,127.17,127.09,14.00336815]
[1769020323761,23.64,127.2,127.1,6.91586815]
[1769020324270,7.0832,127.17,127.1,14.00286815]
[1769020325261,110.1829,127.17,127.07,6.91586815]
[1769020325861,7.0849,127.14,127.07,14.00406815]
[1769020326368,30.14120025,127.18,127.08,6.91586815]
[1769020326571,110.1703,127.19,127.08,6.91586815]
[1769020326759,6.2372728,127.18,127.08,6.91586815]
[1769020326960,110.1703,127.19,127.08,6.91586815]
[1769020327162,6.23726352,127.18,127.08,6.91586815]
[1769020327356,7.0837,127.16,127.08,6.91586815]
[1769020327564,6.50120025,127.21,127.09,6.91586815]
[1769020328077,6.23619209,127.2,127.09,6.91586815]
[1769020328272,6.50120025,127.21,127.09,6.91586815]
[1769020328461,6.23618977,127.2,127.09,6.91586815]
[1769020328662,6.50120025,127.21,127.09,6.91586815]
[1769020328873,7.0831,127.18,127.11,7.0864]
[1769020329666,7.0831,127.18,127.1,6.91586815]
[1769020329867,110.1664,127.19,127.09,7.0871]
[1769020330067,116.65283935,127.19,127.09,7.0871]
[1769020330270,116.65283935,127.19,127.08,6.91586815]
[1769020330771,7.0838,127.16,127.08,6.91586815]
[1769020331274,110.1825,127.17,127.08,6.91586815]
[1769020332876,7.0848,127.14,127.08,6.91586815]
[1769020333071,110.1916,127.16,127.08,6.91586815]
[1769020333877,110.1916,127.16,127.03,407.7812]
[1769020333878,7.0854,127.13,127.05,14.00566815]
[1769020334174,7.0854,127.13,127.06,6.91586815]
[1769020334973,7.0854,127.13,127.07,6.91586815]
[1769020335571,133.8142,127.18,127.07,6.91586815]
[1769020335769,6.48643935,127.19,127.08,6.80301768]
[1769020335970,6.23260874,127.18,127.08,6.80301768]
[1769020336173,6.48643935,127.19,127.08,6.80301768]
[1769020336375,6.23255715,127.18,127.08,6.80301768]
[1769020336572,7.0842,127.16,127.09,6.80301768]
[1769020336973,6.48643935,127.19,127.09,6.80301768]
[1769020337277,6.48643935,127.19,127.06,110.2753]
[1769020337278,140.27173935,127.22,127.1,6.80301768]
[1769020337476,6.23210014,127.21,127.1,6.80301768]
[1769020337681,6.23210014,127.2,127.1,6.80301768]
[1769020338076,6.23210014,127.2,127.12,7.0858]
[1769020338278,140.27173935,127.22,127.12,7.0858]
[1769020338478,6.23250826,127.21,127.12,7.0858]
[1769020338686,6.23250826,127.2,127.12,7.0858]
[1769020338884,7.082,127.19,127.12,7.0858]
[1769020340878,7.0827,127.18,127.11,7.0864]
[1769020341084,7.0827,127.18,127.1,6.80301768]
[1769020341679,7.0827,127.18,127.11,6.80301768]
[1769020341885,7.0832,127.17,127.11,6.80301768]
[1769020342282,7.0826,127.18,127.11,6.80301768]
[1769020342779,7.0837,127.16,127.11,6.80301768]
[1769020342980,220.3294,127.2,127.11,6.80301768]
[1769020343380,6.24180304,127.19,127.11,6.80301768]
[1769020343579,220.3294,127.2,127.11,6.80301768]
[1769020343778,7.0837,127.16,127.11,6.80301768]
[1769020344685,7.0837,127.16,127.09,6.80301768]
[1769020346696,7.0831,127.17,127.1,6.80301768]
[1769020347192,7.0831,127.17,127.1,13.88991768]
[1769020347384,7.0831,127.17,127.11,6.80301768]
[1769020347788,7.0838,127.16,127.11,6.80301768]
[1769020348383,7.0838,127.16,127.09,6.80301768]
[1769020348589,7.0835,127.17,127.09,6.80301768]
[1769020350187,7.0839,127.16,127.09,6.80301768]
[1769020350394,140.29453935,127.19,127.09,6.80301768]
[1769020350693,29.90250755,127.18,127.09,6.80301768]
[1769020350890,6.26250755,127.17,127.09,6.80301768]
[1769020351194,23.64,127.18,127.09,6.80301768]
[1769020351394,6.2620515,127.17,127.09,6.80301768]
[1769020351589,23.64,127.18,127.09,6.80301768]
[1769020351792,6.26210665,127.17,127.09,13.89051768]
[1769020352099,6.26210665,127.16,127.06,6.80301768]
[1769020352404,6.26210665,127.15,127.06,6.80301768]
[1769020352593,133.8163,127.18,127.06,6.80301768]
[1769020352791,29.90200162,127.17,127.06,6.80301768]
[1769020353096,7.0848,127.15,127.07,13.89171768]
[1769020353496,7.0848,127.15,127.08,7.0881]
[1769020355099,7.0848,127.15,127.08,13.89111768]
[1769020357500,7.0848,127.15,127.09,6.80301768]
[1769020357895,7.0848,127.15,127.09,13.89041768]
[1769020359702,133.8248,127.17,127.07,13.89121768]
[1769020359894,6.26004113,127.16,127.07,13.89121768]
[1769020360098,6.26004113,127.15,127.07,13.89121768]
[1769020360296,7.0853,127.14,127.07,13.89121768]
[1769020360604,7.0853,127.14,127.08,6.80301768]
[1769020362702,110.1968,127.16,127.08,6.80301768]
[1769020362900,6.26351049,127.15,127.08,6.80301768]
[1769020363099,6.26399076,127.14,127.04,6.80301768]
[1769020363295,6.26399076,127.14,127.05,6.80301768]
[1769020363296,116.48487004,127.13,127.05,6.80301768]
[1769020363595,6.26387004,127.12,127.05,6.80301768]
[1769020364413,110.2357,127.11,127.02,6.80301768]
[1769020365001,7.0887,127.07,127.02,6.80301768]
[1769020365304,110.2289,127.12,127.02,6.80301768]
[1769020365509,7.0883,127.08,127.02,6.80301768]
[1769020368303,2.6458688,127.09,127.02,6.80301768]
[1769020369512,2.6458688,127.07,127.02,6.80301768]
[1769020370309,2.6458688,127.09,127.02,6.80301768]
[1769020371313,2.6458688,127.06,126.98,14.08293544]
[1769020371808,110.2631,127.08,126.99,6.98953544]
[1769020372010,2.6458688,127.04,126.97,6.98953544]
[1769020373212,110.2469,127.1,126.96,7.0945]
[1769020373213,2.6458688,127.05,126.98,6.98953544]
[1769020373806,2.6458688,127.05,126.99,14.08243544]
[1769020374204,2.6458688,127.07,127.0,6.98953544]
[1769020374418,2.6458688,127.09,127.0,6.98953544]
[1769020374627,110.2289,127.12,127.02,6.98953544]
[1769020374628,2.6458688,127.1,127.02,6.98953544]
[1769020375116,2.6458688,127.08,127.02,6.98953544]
[1769020375313,2.6458688,127.06,126.99,6.98953544]
[1769020375517,9.7352688,127.06,126.99,6.98953544]
[1769020375917,2.6458688,127.04,126.97,14.08353544]
[1769020376124,2.6458688,127.04,126.98,6.98953544]
[1769020376916,6.50075999,127.08,126.99,6.98953544]
[1769020377625,7.089,127.07,126.99,14.08253544]
[1769020377825,7.089,127.07,127.0,6.98953544]
[1769020378620,7.089,127.07,127.0,14.08203544]
[1769020379523,110.2454,127.1,127.01,6.38028438]
[1769020380228,110.2529,127.09,126.99,6.38028438]
[1769020380424,6.50075999,127.11,127.0,6.38028438]
[1769020380628,110.22,127.13,127.03,6.38028438]
[1769020381221,116.71635999,127.14,127.04,6.38028438]
[1769020382028,6.50075999,127.14,127.05,6.38028438]
[1769020382222,124.3625,127.16,127.05,6.38028438]
[1769020382223,110.1945,127.16,127.05,6.38028438]
[1769020382422,110.1787,127.18,127.05,6.38028438]
[1769020382729,7.0843,127.15,127.08,6.38028438]
[1769020383234,7.0836,127.17,127.09,6.38028438]
[1769020383530,110.1758,127.18,127.09,6.38028438]
[1769020384122,110.1638,127.2,127.09,6.38028438]
[1769020384330,6.27831697,127.19,127.09,6.38028438]
[1769020384530,110.1638,127.2,127.09,6.38028438]
[1769020384927,110.1638,127.2,127.1,6.38028438]
[1769020384928,7.0831,127.18,127.1,6.38028438]
[1769020386029,7.0831,127.18,127.11,6.38028438]
[1769020386229,7.0819,127.2,127.11,6.38028438]
[1769020386630,110.142,127.22,127.12,6.38028438]
[1769020387223,7.0821,127.19,127.12,6.38028438]
[1769020388720,110.148,127.21,127.13,6.38028438]
[1769020388721,7.0813,127.21,127.13,6.38028438]
[1769020389238,7.0798,127.23,127.13,6.38028438]
[1769020389534,7.0798,127.23,127.14,6.38028438]